[Event "*** Titled Tuesday Blitz"]
[Site "Chess.com"]
[Date "2020.11.10"]
[Round "5"]
[White "MasterKroket"]
[Black "Deepweb2020"]
[Result "1-0"]
[WhiteElo "2428"]
[BlackElo "2238"]
[TimeControl "180+1"]
[EndTime "11:01:08 PST"]
[Termination "MasterKroket won by checkmate"]

1. d4 {[%clk 0:03:00.9]} 1... Nf6 {[%clk 0:02:54.8]} 2. c4 {[%clk 0:03:01]} 2...
e6 {[%clk 0:02:50.8]} 3. Nf3 {[%clk 0:03:00.8]} 3... Bb4+ {[%clk 0:02:50.3]} 4.
Bd2 {[%clk 0:03:00.5]} 4... Qe7 {[%clk 0:02:49.9]} 5. g3 {[%clk 0:03:00.6]} 5...
Nc6 {[%clk 0:02:48.6]} 6. Bg2 {[%clk 0:02:58.9]} 6... Bxd2+ {[%clk 0:02:48.3]}
7. Nbxd2 {[%clk 0:02:57.6]} 7... O-O {[%clk 0:02:49.2]} 8. O-O {[%clk
0:02:56.6]} 8... d6 {[%clk 0:02:49.3]} 9. Rb1 {[%clk 0:02:53.2]} 9... e5 {[%clk
0:02:46.9]} 10. e3 {[%clk 0:02:52.7]} 10... Bf5 {[%clk 0:02:44.5]} 11. Ra1
{[%clk 0:02:49.8]} 11... a5 {[%clk 0:02:41.7]} 12. Re1 {[%clk 0:02:43.5]} 12...
Rfe8 {[%clk 0:02:38.9]} 13. Nh4 {[%clk 0:02:38.2]} 13... Bg4 {[%clk 0:02:30.3]}
14. f3 {[%clk 0:02:29.6]} 14... Bd7 {[%clk 0:02:29.5]} 15. d5 {[%clk 0:02:25.1]}
15... Nb8 {[%clk 0:02:28.8]} 16. Bf1 {[%clk 0:02:19.9]} 16... e4 {[%clk
0:02:17.4]} 17. f4 {[%clk 0:02:15.4]} 17... Na6 {[%clk 0:02:15.7]} 18. Nb3
{[%clk 0:02:12.7]} 18... a4 {[%clk 0:02:08.3]} 19. Nd4 {[%clk 0:02:12.8]} 19...
Nc5 {[%clk 0:01:58.5]} 20. Be2 {[%clk 0:02:08.7]} 20... g6 {[%clk 0:01:52.7]}
21. b4 {[%clk 0:02:04.6]} 21... axb3 {[%clk 0:01:40]} 22. axb3 {[%clk
0:02:04.4]} 22... Na6 {[%clk 0:01:29.8]} 23. Qd2 {[%clk 0:02:01.7]} 23... h5
{[%clk 0:01:26.1]} 24. b4 {[%clk 0:01:54.8]} 24... Kg7 {[%clk 0:01:19.7]} 25.
Qc3 {[%clk 0:01:55.2]} 25... c5 {[%clk 0:01:12.6]} 26. b5 {[%clk 0:01:51.3]}
26... Nb4 {[%clk 0:01:10.4]} 27. Nc2 {[%clk 0:01:44.3]} 27... Nxc2 {[%clk
0:01:06.7]} 28. Qxc2 {[%clk 0:01:45.2]} 28... Bg4 {[%clk 0:01:03.3]} 29. Bxg4
{[%clk 0:01:39.2]} 29... Nxg4 {[%clk 0:01:02]} 30. Qc3+ {[%clk 0:01:34.4]} 30...
Qf6 {[%clk 0:00:53.6]} 31. Qxf6+ {[%clk 0:01:34.5]} 31... Kxf6 {[%clk 0:00:44]}
32. Ng2 {[%clk 0:01:34.5]} 32... Ke7 {[%clk 0:00:36.1]} 33. h3 {[%clk
0:01:32.9]} 33... Nh6 {[%clk 0:00:33.5]} 34. Kf2 {[%clk 0:01:32.6]} 34... Nf5
{[%clk 0:00:32.7]} 35. g4 {[%clk 0:01:30.1]} 35... Nh6 {[%clk 0:00:28.8]} 36.
Kg3 {[%clk 0:01:28.6]} 36... hxg4 {[%clk 0:00:22.4]} 37. hxg4 {[%clk 0:01:28.4]}
37... f5 {[%clk 0:00:23.3]} 38. g5 {[%clk 0:01:25.2]} 38... Ng4 {[%clk
0:00:23.2]} 39. Rxa8 {[%clk 0:01:19.4]} 39... Rxa8 {[%clk 0:00:22.7]} 40. Rh1
{[%clk 0:01:19.9]} 40... Ra4 {[%clk 0:00:17.3]} 41. Rh7+ {[%clk 0:01:19.5]}
41... Kf8 {[%clk 0:00:17.4]} 42. Rxb7 {[%clk 0:01:18.8]} 42... Rxc4 {[%clk
0:00:17.5]} 43. Rd7 {[%clk 0:01:18.7]} 43... Rb4 {[%clk 0:00:08.9]} 44. Nh4
{[%clk 0:01:15.8]} 44... Rxb5 {[%clk 0:00:04.8]} 45. Nxg6+ {[%clk 0:01:15.3]}
45... Ke8 {[%clk 0:00:04.8]} 46. Rxd6 {[%clk 0:01:15.8]} 46... Nxe3 {[%clk
0:00:04.5]} 47. Re6+ {[%clk 0:01:14.6]} 47... Kf7 {[%clk 0:00:04.2]} 48. Ne5+
{[%clk 0:01:13.4]} 48... Kg7 {[%clk 0:00:03.9]} 49. Re7+ {[%clk 0:01:12.2]}
49... Kf8 {[%clk 0:00:04.3]} 50. Rf7+ {[%clk 0:01:12.4]} 50... Ke8 {[%clk
0:00:04.3]} 51. g6 {[%clk 0:01:13]} 51... Rb2 {[%clk 0:00:03.8]} 52. g7 {[%clk
0:01:12.2]} 52... Nf1+ {[%clk 0:00:03.8]} 53. Kh4 {[%clk 0:01:09.5]} 53... Rg2
{[%clk 0:00:03.7]} 54. Rf8+ {[%clk 0:01:04.8]} 54... Ke7 {[%clk 0:00:03.2]} 55.
g8=Q {[%clk 0:01:04.8]} 55... Rxg8 {[%clk 0:00:03.2]} 56. Rxg8 {[%clk
0:01:05.7]} 56... e3 {[%clk 0:00:03]} 57. Rg6 {[%clk 0:01:04]} 57... e2 {[%clk
0:00:02.5]} 58. Re6+ {[%clk 0:01:04.2]} 58... Kd8 {[%clk 0:00:02.5]} 59. Nc6+
{[%clk 0:01:03.9]} 59... Kc7 {[%clk 0:00:02.4]} 60. Rxe2 {[%clk 0:01:03.8]}
60... Kd6 {[%clk 0:00:03.3]} 61. Re5 {[%clk 0:01:03.1]} 61... Nd2 {[%clk
0:00:02.9]} 62. Rxf5 {[%clk 0:01:01.5]} 62... Nf3+ {[%clk 0:00:03]} 63. Kg4
{[%clk 0:01:01.5]} 63... Nh2+ {[%clk 0:00:03.2]} 64. Kg5 {[%clk 0:01:00.9]}
64... Nf3+ {[%clk 0:00:02.4]} 65. Kf6 {[%clk 0:01:01.2]} 65... c4 {[%clk
0:00:02.6]} 66. Ne5 {[%clk 0:00:59.7]} 66... c3 {[%clk 0:00:01.9]} 67. Nxf3
{[%clk 0:00:59.8]} 67... c2 {[%clk 0:00:02.2]} 68. Ng5 {[%clk 0:00:55.8]} 68...
c1=Q {[%clk 0:00:02.3]} 69. Ne4+ {[%clk 0:00:56.2]} 69... Kd7 {[%clk 0:00:01.7]}
70. Ng5 {[%clk 0:00:45.4]} 70... Qa1+ {[%clk 0:00:02.6]} 71. Kg6 {[%clk
0:00:45.5]} 71... Qd4 {[%clk 0:00:03.1]} 72. Nf3 {[%clk 0:00:43.6]} 72... Qd1
{[%clk 0:00:04]} 73. Ne5+ {[%clk 0:00:43.7]} 73... Kd6 {[%clk 0:00:04]} 74. Nf7+
{[%clk 0:00:43.8]} 74... Kd7 {[%clk 0:00:04.1]} 75. d6 {[%clk 0:00:44.1]} 75...
Qg1+ {[%clk 0:00:03.7]} 76. Kf6 {[%clk 0:00:44]} 76... Qa1+ {[%clk 0:00:04.5]}
77. Re5 {[%clk 0:00:42.5]} 77... Qg1 {[%clk 0:00:05.4]} 78. Re7+ {[%clk
0:00:41.5]} 78... Kc6 {[%clk 0:00:05.9]} 79. Rc7+ {[%clk 0:00:41.7]} 79... Kd5
{[%clk 0:00:05.2]} 80. d7 {[%clk 0:00:37.6]} 80... Qa1+ {[%clk 0:00:05.5]} 81.
Ke7 {[%clk 0:00:37]} 81... Qa3+ {[%clk 0:00:05.6]} 82. Ke8 {[%clk 0:00:37.2]}
82... Ke6 {[%clk 0:00:04.5]} 83. d8=Q {[%clk 0:00:24.8]} 83... Qa4+ {[%clk
0:00:01.1]} 84. Qd7+ {[%clk 0:00:24.3]} 84... Kf6 {[%clk 0:00:01]} 85. Qxa4
{[%clk 0:00:23.3]} 85... Kg7 {[%clk 0:00:01.9]} 86. Ne5+ {[%clk 0:00:21.6]}
86... Kh6 {[%clk 0:00:01.6]} 87. Qc6+ {[%clk 0:00:20.6]} 87... Kh5 {[%clk
0:00:01.1]} 88. Rh7# {[%clk 0:00:21.3]} 1-0

[Event "*** Titled Tuesday Blitz"]
[Site "Chess.com"]
[Date "2020.11.10"]
[Round "5"]
[White "Smile2005"]
[Black "RestartingChess"]
[Result "1/2-1/2"]
[WhiteElo "2393"]
[BlackElo "2561"]
[TimeControl "180+1"]
[EndTime "11:01:17 PST"]
[Termination "Game drawn - timeout vs insufficient material"]

1. Nf3 {[%clk 0:03:00.1]} 1... Nf6 {[%clk 0:03:00.5]} 2. g3 {[%clk 0:03:00.3]}
2... d5 {[%clk 0:03:01.1]} 3. Bg2 {[%clk 0:03:00.6]} 3... c5 {[%clk 0:03:01.8]}
4. O-O {[%clk 0:03:00.9]} 4... Nc6 {[%clk 0:03:02.4]} 5. d3 {[%clk 0:03:00.1]}
5... Bg4 {[%clk 0:03:02.6]} 6. h3 {[%clk 0:03:00.2]} 6... Bxf3 {[%clk
0:03:02.3]} 7. Bxf3 {[%clk 0:03:00.4]} 7... e6 {[%clk 0:03:03.2]} 8. Bg2 {[%clk
0:03:00.5]} 8... Bd6 {[%clk 0:03:03.4]} 9. Nd2 {[%clk 0:03:01]} 9... h6 {[%clk
0:03:04]} 10. e4 {[%clk 0:03:01.4]} 10... dxe4 {[%clk 0:03:00.3]} 11. Nxe4
{[%clk 0:03:01]} 11... Nxe4 {[%clk 0:03:00.1]} 12. dxe4 {[%clk 0:03:00.5]} 12...
c4 {[%clk 0:02:39.8]} 13. Qe2 {[%clk 0:02:59.7]} 13... b5 {[%clk 0:02:09.4]} 14.
Rd1 {[%clk 0:02:58.7]} 14... e5 {[%clk 0:01:56.2]} 15. Be3 {[%clk 0:02:42]}
15... Qe7 {[%clk 0:01:52.1]} 16. Qg4 {[%clk 0:02:38.4]} 16... Qf6 {[%clk
0:01:36.4]} 17. Rd5 {[%clk 0:02:35.4]} 17... O-O {[%clk 0:01:31.6]} 18. Rad1
{[%clk 0:02:30.8]} 18... Rfd8 {[%clk 0:01:31.9]} 19. Rxb5 {[%clk 0:02:29.6]}
19... Nb4 {[%clk 0:01:22.8]} 20. c3 {[%clk 0:01:58.7]} 20... Nd3 {[%clk
0:01:22.6]} 21. Bf1 {[%clk 0:01:54.8]} 21... Bc7 {[%clk 0:00:52.9]} 22. Bxd3
{[%clk 0:01:52.6]} 22... cxd3 {[%clk 0:00:53.8]} 23. Rd5 {[%clk 0:01:52]} 23...
Rxd5 {[%clk 0:00:51.7]} 24. exd5 {[%clk 0:01:52.9]} 24... Qa6 {[%clk 0:00:52.5]}
25. Qe4 {[%clk 0:01:46.7]} 25... Rd8 {[%clk 0:00:48.2]} 26. a3 {[%clk
0:01:45.3]} 26... Qb5 {[%clk 0:00:45]} 27. b4 {[%clk 0:01:43.2]} 27... Qxd5
{[%clk 0:00:42.9]} 28. Qxd5 {[%clk 0:01:42.8]} 28... Rxd5 {[%clk 0:00:43.8]} 29.
Bxa7 {[%clk 0:01:41.9]} 29... e4 {[%clk 0:00:44.5]} 30. Be3 {[%clk 0:01:40.3]}
30... f5 {[%clk 0:00:44.3]} 31. c4 {[%clk 0:01:39.7]} 31... Rd8 {[%clk
0:00:44.3]} 32. c5 {[%clk 0:01:39.5]} 32... g5 {[%clk 0:00:44.8]} 33. b5 {[%clk
0:01:39.1]} 33... f4 {[%clk 0:00:45.3]} 34. gxf4 {[%clk 0:01:34.8]} 34... gxf4
{[%clk 0:00:46.2]} 35. Bc1 {[%clk 0:01:31.7]} 35... Be5 {[%clk 0:00:44.6]} 36.
c6 {[%clk 0:01:15.2]} 36... Bc7 {[%clk 0:00:43.2]} 37. Bb2 {[%clk 0:01:11.5]}
37... e3 {[%clk 0:00:40.1]} 38. Bc3 {[%clk 0:00:54.2]} 38... Bb6 {[%clk
0:00:34.2]} 39. Kg2 {[%clk 0:00:32.2]} 39... e2 {[%clk 0:00:32.1]} 40. Re1
{[%clk 0:00:28.3]} 40... d2 {[%clk 0:00:16.3]} 41. Bxd2 {[%clk 0:00:28.3]} 41...
Rxd2 {[%clk 0:00:17.2]} 42. Kf3 {[%clk 0:00:28.1]} 42... Rd3+ {[%clk 0:00:17.6]}
43. Kxf4 {[%clk 0:00:26.7]} 43... Rd2 {[%clk 0:00:10.8]} 44. Kf3 {[%clk
0:00:26.4]} 44... Rd3+ {[%clk 0:00:11.5]} 45. Kxe2 {[%clk 0:00:26.4]} 45... Rxa3
{[%clk 0:00:12.1]} 46. Rc1 {[%clk 0:00:25.6]} 46... Ra2+ {[%clk 0:00:08.6]} 47.
Kd3 {[%clk 0:00:25]} 47... Rxf2 {[%clk 0:00:08.7]} 48. c7 {[%clk 0:00:24.3]}
48... Bxc7 {[%clk 0:00:06.2]} 49. Rxc7 {[%clk 0:00:23.7]} 49... Rb2 {[%clk
0:00:06.9]} 50. Rb7 {[%clk 0:00:23.4]} 50... h5 {[%clk 0:00:06.6]} 51. Ke4
{[%clk 0:00:23.6]} 51... h4 {[%clk 0:00:04.6]} 52. Kf4 {[%clk 0:00:23.7]} 52...
Rb4+ {[%clk 0:00:03.4]} 53. Kg5 {[%clk 0:00:23.8]} 53... Kf8 {[%clk 0:00:03.9]}
54. b6 {[%clk 0:00:19.3]} 54... Ke8 {[%clk 0:00:03]} 55. Rb8+ {[%clk 0:00:19.3]}
55... Kd7 {[%clk 0:00:03.5]} 56. b7 {[%clk 0:00:19.7]} 56... Kc7 {[%clk
0:00:03.7]} 57. Rh8 {[%clk 0:00:20]} 57... Kxb7 {[%clk 0:00:04.4]} 58. Rxh4
{[%clk 0:00:19.6]} 58... Rb5+ {[%clk 0:00:05.3]} 59. Kh6 {[%clk 0:00:17.8]}
59... Kc6 {[%clk 0:00:05.9]} 60. Re4 {[%clk 0:00:15.5]} 60... Kd6 {[%clk
0:00:05.8]} 61. Kg6 {[%clk 0:00:14.5]} 61... Rb1 {[%clk 0:00:06.5]} 62. h4
{[%clk 0:00:14.4]} 62... Rg1+ {[%clk 0:00:07]} 63. Kh7 {[%clk 0:00:14.7]} 63...
Rh1 {[%clk 0:00:07.6]} 64. Kh6 {[%clk 0:00:13.4]} 64... Kd5 {[%clk 0:00:07.9]}
65. Rg4 {[%clk 0:00:11.6]} 65... Ke5 {[%clk 0:00:08.3]} 66. h5 {[%clk 0:00:12]}
66... Kf6 {[%clk 0:00:08.8]} 67. Rg2 {[%clk 0:00:11.3]} 67... Kf5 {[%clk
0:00:08.6]} 68. Rf2+ {[%clk 0:00:10.9]} 68... Ke6 {[%clk 0:00:09.3]} 69. Kg6
{[%clk 0:00:09.8]} 69... Rg1+ {[%clk 0:00:09.8]} 70. Kh7 {[%clk 0:00:08.1]}
70... Rh1 {[%clk 0:00:10.6]} 71. h6 {[%clk 0:00:05.5]} 71... Ke7 {[%clk
0:00:11.3]} 72. Kg7 {[%clk 0:00:05.1]} 72... Rg1+ {[%clk 0:00:11]} 73. Kh8
{[%clk 0:00:04.9]} 73... Rh1 {[%clk 0:00:11.7]} 74. h7 {[%clk 0:00:03.6]} 74...
Ke8 {[%clk 0:00:12.4]} 75. Re2+ {[%clk 0:00:02.5]} 75... Kf7 {[%clk 0:00:12.9]}
76. Rf2+ {[%clk 0:00:02]} 76... Kg6 {[%clk 0:00:12]} 77. Rg2+ {[%clk 0:00:02.2]}
77... Kf7 {[%clk 0:00:12.6]} 78. Rg7+ {[%clk 0:00:02.1]} 78... Kf6 {[%clk
0:00:12.2]} 79. Kg8 {[%clk 0:00:02.4]} 79... Rb1 {[%clk 0:00:09.9]} 80. h8=Q
{[%clk 0:00:02.2]} 80... Rb8+ {[%clk 0:00:10.8]} 81. Kh7 {[%clk 0:00:02.1]}
81... Rb6 {[%clk 0:00:09.5]} 82. Rg6+ {[%clk 0:00:02.1]} 82... Kf5 {[%clk
0:00:08.3]} 83. Rxb6 {[%clk 0:00:02.8]} 83... Kf4 {[%clk 0:00:06.9]} 84. Qf8+
{[%clk 0:00:03]} 84... Ke4 {[%clk 0:00:07.8]} 85. Rb7 {[%clk 0:00:02.5]} 85...
Kd4 {[%clk 0:00:08.7]} 86. Re7 {[%clk 0:00:01]} 86... Kc5 {[%clk 0:00:09.6]}
1/2-1/2

[Event "*** Titled Tuesday Blitz"]
[Site "Chess.com"]
[Date "2020.11.10"]
[Round "5"]
[White "misterlamine"]
[Black "vanyakuba"]
[Result "0-1"]
[WhiteElo "2289"]
[BlackElo "2500"]
[TimeControl "180+1"]
[EndTime "11:01:24 PST"]
[Termination "vanyakuba won by resignation"]

1. d4 {[%clk 0:03:00.9]} 1... d5 {[%clk 0:03:00]} 2. c4 {[%clk 0:03:00.7]} 2...
e6 {[%clk 0:03:00.2]} 3. Nc3 {[%clk 0:03:00.9]} 3... c5 {[%clk 0:03:00.2]} 4. e3
{[%clk 0:02:57.2]} 4... Nf6 {[%clk 0:02:59.9]} 5. Nf3 {[%clk 0:02:56.8]} 5... a6
{[%clk 0:03:00]} 6. cxd5 {[%clk 0:02:56.1]} 6... exd5 {[%clk 0:03:00.1]} 7. dxc5
{[%clk 0:02:56.6]} 7... Bxc5 {[%clk 0:02:59.4]} 8. Be2 {[%clk 0:02:57]} 8... Nc6
{[%clk 0:02:59.9]} 9. O-O {[%clk 0:02:57.5]} 9... O-O {[%clk 0:03:00.5]} 10. a3
{[%clk 0:02:57.6]} 10... Re8 {[%clk 0:03:00.1]} 11. b4 {[%clk 0:02:57.6]} 11...
Ba7 {[%clk 0:03:00.7]} 12. Bb2 {[%clk 0:02:57.9]} 12... Bg4 {[%clk 0:03:00.6]}
13. h3 {[%clk 0:02:54.7]} 13... Bh5 {[%clk 0:02:59.6]} 14. Rc1 {[%clk
0:02:46.4]} 14... Rc8 {[%clk 0:02:58.9]} 15. Na4 {[%clk 0:02:44.8]} 15... Ne4
{[%clk 0:02:56.8]} 16. Nd4 {[%clk 0:02:32.7]} 16... Bxd4 {[%clk 0:02:35.7]} 17.
Bxh5 {[%clk 0:02:11.7]} 17... Bxb2 {[%clk 0:02:08]} 18. Nxb2 {[%clk 0:02:12.6]}
18... d4 {[%clk 0:02:08.4]} 19. exd4 {[%clk 0:02:03.7]} 19... Qxd4 {[%clk
0:02:08]} 20. Qxd4 {[%clk 0:01:53.5]} 20... Nxd4 {[%clk 0:02:08.9]} 21. Rfd1
{[%clk 0:01:49.9]} 21... Rxc1 {[%clk 0:01:46.2]} 22. Rxc1 {[%clk 0:01:50.8]}
22... g6 {[%clk 0:01:46.5]} 23. Bg4 {[%clk 0:01:42.2]} 23... h5 {[%clk
0:01:42.8]} 24. Bf3 {[%clk 0:01:33.5]} 24... Nxf3+ {[%clk 0:01:40.1]} 25. gxf3
{[%clk 0:01:34.4]} 25... Ng5 {[%clk 0:01:23.3]} 26. Kg2 {[%clk 0:01:34.4]} 26...
Re2 {[%clk 0:01:22.9]} 27. Nd3 {[%clk 0:01:34.4]} 27... Ra2 {[%clk 0:01:19.7]}
28. Rc3 {[%clk 0:01:29.3]} 28... Ne6 {[%clk 0:01:17.9]} 29. Kg3 {[%clk
0:01:22.9]} 29... Kg7 {[%clk 0:01:14.1]} 30. f4 {[%clk 0:01:12.4]} 30... Kf6
{[%clk 0:01:09.9]} 31. Ne5 {[%clk 0:01:12.1]} 31... h4+ {[%clk 0:00:58.2]} 32.
Kf3 {[%clk 0:01:06]} 32... Ra1 {[%clk 0:00:32.7]} 33. Rd3 {[%clk 0:00:59.2]}
33... g5 {[%clk 0:00:22.8]} 34. Nd7+ {[%clk 0:00:50.8]} 34... Ke7 {[%clk
0:00:22.4]} 35. fxg5 {[%clk 0:00:47.2]} 35... Nxg5+ {[%clk 0:00:21.7]} 36. Kg4
{[%clk 0:00:46.6]} 36... Rg1+ {[%clk 0:00:17]} 37. Kxh4 {[%clk 0:00:45]} 37...
f6 {[%clk 0:00:15.2]} 38. Nc5 {[%clk 0:00:39.5]} 38... b6 {[%clk 0:00:06.6]} 39.
Nxa6 {[%clk 0:00:36]} 39... Ne6 {[%clk 0:00:07]} 40. Re3 {[%clk 0:00:33.6]}
40... Kf7 {[%clk 0:00:07.2]} 41. b5 {[%clk 0:00:32.8]} 41... Nf4 {[%clk
0:00:07.3]} 42. Nc7 {[%clk 0:00:25]} 42... Ng2+ {[%clk 0:00:07.5]} 43. Kh5
{[%clk 0:00:21.8]} 43... Nxe3 {[%clk 0:00:07.1]} 44. fxe3 {[%clk 0:00:22.7]}
44... Ra1 {[%clk 0:00:07.4]} 45. Nd5 {[%clk 0:00:22.8]} 45... Rxa3 {[%clk
0:00:07.7]} 46. Nxb6 {[%clk 0:00:23.3]} 46... Rxe3 {[%clk 0:00:08.4]} 47. Nc4
{[%clk 0:00:23.2]} 47... Rc3 {[%clk 0:00:08.3]} 48. Nd6+ {[%clk 0:00:21.8]}
48... Ke6 {[%clk 0:00:07.7]} 49. Ne4 {[%clk 0:00:22.2]} 49... Rxh3+ {[%clk
0:00:07.5]} 50. Kg4 {[%clk 0:00:22]} 50... Re3 {[%clk 0:00:07.7]} 51. Kf4 {[%clk
0:00:22]} 51... Re1 {[%clk 0:00:05.4]} 52. b6 {[%clk 0:00:22.2]} 52... Rb1
{[%clk 0:00:05.2]} 53. b7 {[%clk 0:00:22.5]} 53... Kd5 {[%clk 0:00:04.8]} 54.
Nxf6+ {[%clk 0:00:22.3]} 54... Kc6 {[%clk 0:00:04.8]} 55. Kf5 {[%clk 0:00:22.1]}
55... Rxb7 {[%clk 0:00:05.2]} 56. Ne4 {[%clk 0:00:23]} 56... Rb5+ {[%clk
0:00:05.4]} 57. Kf4 {[%clk 0:00:22.9]} 57... Kd5 {[%clk 0:00:05.9]} 58. Nf6+
{[%clk 0:00:23.1]} 58... Ke6 {[%clk 0:00:06.2]} 59. Ne4 {[%clk 0:00:23.6]} 59...
Rb4 {[%clk 0:00:06.7]} 60. Ke3 {[%clk 0:00:22]} 60... Ke5 {[%clk 0:00:06.8]} 61.
Nf2 {[%clk 0:00:22.1]} 61... Rb3+ {[%clk 0:00:06.8]} 62. Nd3+ {[%clk 0:00:22.6]}
62... Kd5 {[%clk 0:00:06.6]} 63. Kd2 {[%clk 0:00:21.9]} 63... Kd4 {[%clk
0:00:06.5]} 64. Ne1 {[%clk 0:00:22.5]} 64... Rb2+ {[%clk 0:00:06.3]} 65. Nc2+
{[%clk 0:00:22.9]} 65... Kc4 {[%clk 0:00:06.9]} 66. Kc1 {[%clk 0:00:19.6]} 66...
Kc3 {[%clk 0:00:06.9]} 67. Ne1 {[%clk 0:00:19.7]} 67... Ra2 {[%clk 0:00:03.9]}
68. Kd1 {[%clk 0:00:19.8]} 68... Rb2 {[%clk 0:00:02.4]} 69. Nf3 {[%clk
0:00:18.1]} 69... Rf2 {[%clk 0:00:02.4]} 70. Ne1 {[%clk 0:00:18.3]} 70... Rf1
{[%clk 0:00:02.8]} 71. Ke2 {[%clk 0:00:18.2]} 71... Rh1 {[%clk 0:00:02.8]} 72.
Nf3 {[%clk 0:00:18.5]} 72... Ra1 {[%clk 0:00:03]} 73. Ke3 {[%clk 0:00:18.8]}
73... Ra2 {[%clk 0:00:03.9]} 74. Kf4 {[%clk 0:00:19.7]} 74... Ra4+ {[%clk
0:00:04]} 75. Kf5 {[%clk 0:00:19.1]} 75... Ra8 {[%clk 0:00:04.9]} 76. Ke4 {[%clk
0:00:19.1]} 76... Kc4 {[%clk 0:00:05.8]} 77. Ne5+ {[%clk 0:00:18.5]} 77... Kc5
{[%clk 0:00:06.3]} 78. Nd3+ {[%clk 0:00:18.9]} 78... Kc6 {[%clk 0:00:06.2]} 79.
Ne5+ {[%clk 0:00:19]} 79... Kd6 {[%clk 0:00:05.8]} 80. Nd3 {[%clk 0:00:19.4]}
80... Re8+ {[%clk 0:00:05.4]} 81. Kd4 {[%clk 0:00:19.4]} 81... Rh8 {[%clk
0:00:05]} 82. Nf2 {[%clk 0:00:19.4]} 82... Rh4+ {[%clk 0:00:05.6]} 83. Ke3
{[%clk 0:00:19.6]} 83... Ke5 {[%clk 0:00:06]} 84. Nd3+ {[%clk 0:00:19.7]} 84...
Kf5 {[%clk 0:00:06.2]} 85. Nc5 {[%clk 0:00:18.4]} 85... Rc4 {[%clk 0:00:06.3]}
86. Nd3 {[%clk 0:00:17.4]} 86... Rc8 {[%clk 0:00:06.4]} 87. Kd4 {[%clk
0:00:16.8]} 87... Rd8+ {[%clk 0:00:06.5]} 88. Ke3 {[%clk 0:00:17.3]} 88... Re8+
{[%clk 0:00:06.1]} 89. Kd4 {[%clk 0:00:17.7]} 89... Rh8 {[%clk 0:00:06.8]} 90.
Nc5 {[%clk 0:00:17.2]} 90... Rh4+ {[%clk 0:00:07.1]} 91. Kd5 {[%clk 0:00:17.6]}
91... Rh1 {[%clk 0:00:06.6]} 92. Kd4 {[%clk 0:00:17]} 92... Rd1+ {[%clk
0:00:06.6]} 93. Nd3 {[%clk 0:00:17.5]} 93... Rd2 {[%clk 0:00:05.8]} 94. Ke3
{[%clk 0:00:17.5]} 94... Rh2 {[%clk 0:00:06.7]} 95. Kd4 {[%clk 0:00:17.8]} 95...
Rh4+ {[%clk 0:00:06.5]} 96. Kd5 {[%clk 0:00:18.2]} 96... Re4 {[%clk 0:00:05.5]}
97. Nc5 {[%clk 0:00:17.8]} 97... Re5+ {[%clk 0:00:05.5]} 98. Kd4 {[%clk
0:00:18.3]} 0-1